bitfinex/quotes_SOLUSD_20260114
["timestamp","ask_amount","ask_price","bid_price","bid_amount"]
[1768409858016,7.01769933,146.97,146.92,0.69284332]
[1768409858181,7.01769933,146.97,146.92,7.49919351]
[1768409858182,0.6671183,146.97,146.92,7.49919351]
[1768409858377,0.6671183,146.97,146.93,6.80591106]
[1768409858378,6.35058103,146.96,146.93,6.80591106]
[1768409859401,6.35058103,146.95,146.93,6.80591106]
[1768409860123,0.6671183,146.97,146.93,6.80591106]
[1768409860327,6.35058103,146.96,146.93,6.80591106]
[1768409860624,0.6671183,146.97,146.93,6.80591106]
[1768409860798,6.35058103,146.95,146.93,6.80591106]
[1768409861121,6.35058103,146.95,146.93,6.74591106]
[1768409861500,0.6671183,146.97,146.93,6.74591106]
[1768409861705,6.35058103,146.96,146.93,0.69284332]
[1768409862023,6.35058103,146.97,146.93,0.69284332]
[1768409862231,6.35058103,146.97,146.94,12.4]
[1768409863597,6.35058103,146.96,146.94,12.4]
[1768409863805,0.6671183,146.98,146.94,12.4]
[1768409864119,6.35058103,146.95,146.93,6.8057134]
[1768409864416,6.35058103,146.95,146.94,6.80549884]
[1768409864808,6.35058103,146.96,146.94,6.80549884]
[1768409865215,0.6671183,146.97,146.94,6.74549884]
[1768409865603,6.35058103,146.96,146.94,19.14549884]
[1768409866013,6.35058103,146.95,146.94,12.4]
[1768409867018,6.35058103,146.95,146.94,12.34]
[1768409867613,11.36841302,146.95,146.94,12.34]
[1768409871507,11.36841302,146.95,146.92,12.42]
[1768409871508,0.67001371,146.94,146.92,12.42]
[1768409871827,6.35058103,146.93,146.92,12.42]
[1768409872000,6.35058103,146.93,146.89,0.65786802]
[1768409872204,6.35058103,146.91,146.89,7.46539608]
[1768409872633,6.35058103,146.92,146.89,7.46539608]
[1768409873829,6.35058103,146.95,146.9,0.65786802]
[1768409874025,6.35058103,146.93,146.89,6.80752806]
[1768409874229,6.35058103,146.92,146.89,6.80752806]
[1768409874605,0.67001371,146.93,146.89,6.80752806]
[1768409874813,6.35058103,146.92,146.89,6.80752806]
[1768409875419,2.49040901,146.91,146.89,6.80752806]
[1768409875619,3.16042272,146.92,146.88,19.22818027]
[1768409875820,17.01319479,146.95,146.88,12.42]
[1768409875821,2.49040901,146.9,146.88,12.42]
[1768409876333,3.16042272,146.91,146.88,19.22821108]
[1768409877212,0.67001371,146.91,146.88,19.22821108]
[1768409877408,3.16042272,146.91,146.88,19.22821108]
[1768409877921,2.49040901,146.92,146.89,0.65786802]
[1768409878128,2.49040901,146.92,146.88,36.90677626]
[1768409878436,3.16042272,146.93,146.88,36.90677626]
[1768409878635,2.49040901,146.92,146.88,36.90677626]
[1768409878932,3.16042272,146.92,146.88,19.22821108]
[1768409879305,3.16042272,146.92,146.88,19.8860791]
[1768409879631,2.49040901,146.91,146.88,19.22821108]
[1768409880420,7.47565603,146.94,146.88,19.8860791]
[1768409880616,2.49040901,146.92,146.88,19.8860791]
[1768409880929,2.49040901,146.92,146.88,36.90677626]
[1768409881325,0.67001371,146.93,146.89,0.65786802]
[1768409881523,7.4741725,146.97,146.89,0.65786802]
[1768409881723,8.89950084,146.96,146.9,0.65786802]
[1768409882030,5.0088305,146.95,146.91,13.07786802]
[1768409882210,9.56951455,146.95,146.92,6.80642526]
[1768409882413,4.56068405,146.95,146.92,6.80642526]
[1768409883039,0.67001371,146.95,146.92,6.80642526]
[1768409883239,4.56068405,146.95,146.92,6.80642526]
[1768409884235,3.89067034,146.95,146.92,6.80642526]
[1768409884821,0.67001371,146.98,146.93,0.65786802]
[1768409885022,8.9034165,146.97,146.93,0.65786802]
[1768409885216,4.56068405,146.98,146.93,0.65786802]
[1768409885547,8.90536537,146.97,146.93,0.65786802]
[1768409885739,5.01469503,146.96,146.93,0.65786802]
[1768409885915,3.89067034,146.97,146.93,0.65786802]
[1768409886116,5.01547248,146.96,146.93,0.65786802]
[1768409886312,4.56068405,146.98,146.93,0.65786802]
[1768409886526,5.01704196,146.97,146.93,0.65786802]
[1768409886836,5.01704196,146.96,146.94,6.80549884]
[1768409887037,0.67001371,147.0,146.95,0.65786802]
[1768409887237,5.01776609,146.99,146.95,0.65786802]
[1768409887422,0.67001371,147.01,146.95,0.65786802]
[1768409887625,5.01987984,147.0,146.95,0.65786802]
[1768409887934,4.56068405,147.01,146.95,0.65786802]
[1768409888116,5.01847272,147.0,146.95,0.65786802]
[1768409888312,4.56068405,147.01,146.95,0.65786802]
[1768409888543,5.02039208,147.0,146.96,0.65786802]
[1768409888728,4.56068405,147.01,146.97,6.80410968]
[1768409888921,5.02095147,147.0,146.97,6.80410968]
[1768409889123,0.67001371,147.0,146.97,6.80410968]
[1768409889322,5.02480746,146.99,146.97,6.80410968]
[1768409889540,0.67001371,147.0,146.97,6.80410968]
[1768409889746,5.02392804,146.99,146.97,6.80410968]
[1768409889933,0.67001371,147.0,146.97,6.74410968]
[1768409890242,5.02519522,146.99,146.97,6.74410968]
[1768409890444,0.67001371,147.0,146.97,6.74410968]
[1768409890750,5.02665821,146.99,146.97,6.74410968]
[1768409890924,0.67001371,147.01,146.97,6.74410968]
[1768409891244,5.02866277,147.0,146.97,6.74410968]
[1768409891444,4.56068405,147.01,146.97,6.74410968]
[1768409891445,5.0273582,146.99,146.97,6.74410968]
[1768409891648,4.56068405,147.01,146.97,6.74410968]
[1768409891842,5.02575373,147.0,146.97,6.74410968]
[1768409892042,3.89067034,147.02,146.98,0.65786802]
[1768409892227,5.02536475,147.01,146.98,0.65786802]
[1768409892540,5.02536475,147.0,146.98,0.65786802]
[1768409892747,0.67001371,147.02,146.97,36.8322519]
[1768409892932,4.93310933,147.01,146.97,36.8322519]
[1768409893242,4.93310933,147.0,146.97,36.8322519]
[1768409893442,4.93310933,146.99,146.97,36.8322519]
[1768409893754,4.93232154,146.98,146.97,12.42]
[1768409894547,4.56068405,146.99,146.97,12.42]
[1768409894850,4.71527005,146.98,146.95,0.65786802]
[1768409895027,11.36398509,146.99,146.95,0.65786802]
[1768409895231,4.71527204,146.98,146.95,0.65786802]
[1768409895560,10.69397138,146.99,146.95,0.65786802]
[1768409895755,4.71545933,146.98,146.95,7.46288163]
[1768409895937,10.69397138,146.99,146.95,7.46288163]
[1768409896130,4.71545933,146.98,146.95,7.46288163]
[1768409896327,0.67001371,146.98,146.94,12.4]
[1768409896551,3.89067034,146.97,146.94,12.4]
[1768409896727,4.56068405,146.96,146.94,12.4]
[1768409896938,0.67001371,146.94,146.89,0.65786802]
[1768409897162,3.89067034,146.92,146.88,0.65786802]
[1768409897369,3.89067034,146.92,146.88,13.05786802]
[1768409897862,3.89067034,146.91,146.88,13.05786802]
[1768409898661,3.89067034,146.91,146.88,12.4]
[1768409899054,7.47664932,146.92,146.88,12.4]
[1768409899257,3.89067034,146.91,146.88,12.4]
[1768409901259,3.89067034,146.91,146.88,19.20827217]
[1768409901456,11.36731966,146.92,146.88,12.4]
[1768409901663,7.47664932,146.92,146.88,12.4]
[1768409901837,11.36731966,146.92,146.88,12.4]
[1768409902146,3.89067034,146.91,146.88,12.4]
[1768409903365,0.67042427,146.94,146.89,0.72026162]
[1768409903544,8.59438717,146.93,146.89,0.72026162]
[1768409903743,4.56109461,146.93,146.89,0.72026162]
[1768409904138,4.56109461,146.93,146.88,19.92845694]
[1768409904336,3.89067034,146.92,146.88,19.92845694]
[1768409904835,4.56109461,146.91,146.88,12.4]
[1768409905063,3.89067034,146.9,146.88,12.4]
[1768409905366,3.89067034,146.9,146.86,7.52942154]
[1768409906156,3.86067035,146.9,146.86,7.52942154]
[1768409906664,3.89067034,146.91,146.87,6.80871365]
[1768409907562,4.56109461,146.92,146.87,7.52897527]
[1768409907757,3.89067034,146.93,146.88,0.72026162]
[1768409907961,4.56109461,146.93,146.88,0.72026162]
[1768409908260,4.56109461,146.91,146.87,19.22871365]
[1768409908469,4.53109462,146.91,146.87,19.22871365]
[1768409908769,4.53109462,146.91,146.87,19.94897527]
[1768409909339,3.89067034,146.91,146.88,0.72026162]
[1768409909540,6.80645699,146.92,146.88,0.72026162]
[1768409909741,6.80610432,146.93,146.88,0.72026162]
[1768409909947,3.89067034,146.94,146.88,0.72026162]
[1768409910353,23.81276363,146.98,146.88,0.72026162]
[1768409910564,4.56109461,146.94,146.88,0.72026162]
[1768409911674,4.56109461,146.94,146.89,7.52807699]
[1768409912773,7.47638629,146.93,146.88,6.80827886]
[1768409912962,4.56109461,146.92,146.88,7.52854048]
[1768409913462,3.89067034,146.91,146.88,6.80827886]
[1768409914377,3.89067034,146.92,146.88,7.52854048]
[1768409914575,3.89067034,146.93,146.88,7.52854048]
[1768409914779,4.56109461,146.93,146.88,7.52854048]
[1768409914979,0.67042427,146.93,146.88,7.52854048]
[1768409915179,0.67042427,146.95,146.89,0.72026162]
[1768409915368,4.56109461,146.96,146.91,0.72026162]
[1768409915577,0.67042427,146.98,146.91,0.72026162]
[1768409915871,4.56109461,146.97,146.91,0.72026162]
[1768409916058,3.89067034,146.95,146.91,0.72026162]
[1768409916764,4.56109461,146.95,146.91,0.72026162]
[1768409916981,4.56109461,146.95,146.91,7.5268356]
[1768409917179,0.67042427,146.95,146.91,7.5268356]
[1768409917377,4.56109461,146.95,146.91,7.5268356]
[1768409918256,0.67042427,146.95,146.91,7.5268356]
[1768409919438,0.67042427,146.99,146.92,0.72026162]
[1768409919701,0.67042427,146.98,146.93,0.72026162]
[1768409919895,4.56109461,146.98,146.93,0.72026162]
[1768409920092,4.56109461,146.98,146.93,13.14026162]
[1768409920477,0.67042427,146.98,146.94,0.72026162]
[1768409920804,4.56109461,146.98,146.94,0.72026162]
[1768409921295,0.67042427,146.98,146.94,0.72026162]
[1768409921480,4.56109461,146.98,146.94,0.72026162]
[1768409921683,4.56109461,146.98,146.93,19.94576972]
[1768409921887,0.67042427,146.98,146.93,13.14026162]
[1768409922281,4.56109461,147.0,146.94,0.72026162]
[1768409922901,0.67042427,147.0,146.95,0.72026162]
[1768409923405,4.56109461,147.0,146.96,6.80457267]
[1768409924496,0.67042427,147.0,146.96,6.80457267]
[1768409924802,4.56109461,147.0,146.96,6.80457267]
[1768409925289,0.67042427,147.0,146.96,6.80457267]
[1768409925476,4.56109461,147.0,146.96,6.80457267]
[1768409925691,0.67042427,147.04,146.97,6.80378071]
[1768409925891,17.00153029,147.05,146.97,10.69445105]
[1768409925892,0.67042427,147.02,146.97,10.69445105]
[1768409926097,0.67042427,147.02,146.97,11.41471267]
[1768409926588,0.67042427,147.02,146.97,23.83471267]
[1768409928207,0.67042427,147.02,146.98,0.72026162]
[1768409928585,0.67042427,147.02,146.98,4.61093196]
[1768409928810,0.67042427,147.02,146.97,40.12472525]
[1768409929112,4.56109461,147.01,146.97,19.22378071]
[1768409929320,0.67042427,147.01,146.97,19.22378071]
[1768409929923,0.67042427,147.0,146.97,19.22378071]
[1768409930091,0.67042427,147.0,146.97,12.42]
[1768409930486,0.66543629,146.99,146.97,12.42]
[1768409930689,0.66543629,147.01,146.97,19.22402444]
[1768409930897,0.66543629,147.0,146.97,19.22402444]
[1768409931093,0.66543629,147.0,146.97,12.42]
[1768409931410,0.66543629,147.0,146.97,19.22408442]
[1768409932005,0.66543629,146.99,146.97,12.42]
[1768409933030,0.66543629,146.99,146.96,6.80450366]
[1768409933797,1e-08,146.99,146.95,7.48874309]
[1768409935020,3.89067035,146.99,146.95,6.80503572]
[1768409935314,3.83067036,146.99,146.95,6.80503572]
[1768409935494,3.89067034,146.98,146.94,19.20529064]
[1768409935685,0.66543629,146.98,146.94,19.20529064]
[1768409936415,4.55610663,146.98,146.94,19.20529064]
[1768409936795,3.89067034,146.97,146.94,6.80529064]
[1768409937493,4.55610663,146.98,146.94,6.80529064]
[1768409937684,0.66543629,146.98,146.94,6.80529064]
[1768409937893,4.55610663,147.0,146.95,0.68370737]
[1768409938814,4.55610663,147.0,146.96,6.80457267]
[1768409939207,0.15270628,146.97,146.94,6.80510892]
[1768409939405,0.12270629,146.97,146.94,6.80510892]
[1768409939999,4.01337663,146.97,146.94,6.80510892]
[1768409940906,3.89067034,146.98,146.94,7.48881629]
[1768409941206,6.80318389,146.99,146.94,7.48881629]
[1768409941398,0.59938194,146.98,146.94,7.48881629]
[1768409941738,2.48779743,146.99,146.95,0.68370737]
[1768409942012,2.45779744,146.99,146.95,0.68370737]
[1768409942227,0.59938194,147.04,146.98,0.68370737]
[1768409942394,0.59938194,147.02,146.98,0.68370737]
[1768409942594,0.59938194,147.02,146.96,0.68370737]
[1768409942820,0.59938194,147.0,146.96,7.48814454]
[1768409943020,0.56938195,147.0,146.96,7.48814454]
[1768409943226,9.29019433,147.01,146.96,7.48814454]
[1768409943796,6.79948323,147.07,147.0,3.1715048]
[1768409944013,2.48779743,147.05,147.0,13.08370737]
[1768409944403,6.79948323,147.07,147.0,13.08370737]
[1768409944597,2.48779743,147.05,147.0,13.08370737]
[1768409944823,2.48779743,147.05,147.01,6.80225834]
[1768409944997,0.53998196,147.04,147.01,6.80225834]
[1768409945813,9.28792546,147.06,147.01,6.80225834]
[1768409946012,0.53998196,147.05,147.01,6.80225834]
[1768409947529,0.53998196,147.05,147.01,7.48596571]
[1768409948110,9.82777923,147.06,147.01,7.48596571]
[1768409948624,7.3399818,147.06,147.01,7.48596571]
[1768409949011,2.48779743,147.05,147.01,7.48596571]
[1768409950529,9.82777923,147.06,147.01,7.48596571]
[1768409950824,0.53998196,147.04,147.01,6.80225834]
[1768409951030,3.02777939,147.04,147.0,19.20255861]
[1768409951335,3.02777939,147.04,147.0,19.88626598]
[1768409951502,0.53998196,147.04,147.0,19.88626598]
[1768409952033,2.48779743,147.05,147.0,19.88626598]
[1768409952034,2.48779743,147.05,147.01,7.4858219]
[1768409952229,7.3399818,147.06,147.01,7.4858219]
[1768409952540,2.48779743,147.05,147.01,7.4858219]
[1768409953230,2.48779743,147.02,146.99,0.68370737]
[1768409953407,3.02777939,147.0,146.96,6.80446424]
[1768409953607,0.50998197,147.0,146.96,7.48817161]
[1768409953831,2.48779743,146.98,146.95,12.4]
[1768409954033,2.48779743,146.98,146.95,13.08370737]
[1768409954637,2.48779743,146.98,146.96,0.68370737]
[1768409954931,2.48779743,146.98,146.95,13.08370737]
[1768409955231,9.29184112,146.98,146.94,0.68370737]
[1768409955436,2.48779743,146.95,146.92,0.68370737]
[1768409955610,0.48058198,146.96,146.92,7.49003533]
[1768409956032,2.48779743,146.97,146.93,0.68370737]
[1768409956411,2.96837941,146.97,146.93,7.48954991]
[1768409956622,9.77256393,146.97,146.93,0.68370737]
[1768409956822,2.48779743,146.96,146.93,0.68370737]
[1768409957430,0.48058198,146.99,146.93,0.68370737]
[1768409957620,0.48058198,146.98,146.94,0.68370737]
[1768409957830,2.48779743,146.97,146.94,0.68370737]
[1768409958022,0.45058199,146.98,146.94,0.68370737]
[1768409958219,0.45058199,146.98,146.91,19.50427499]
[1768409958220,23.81152177,146.99,146.9,0.68370737]
[1768409958418,2.48779743,146.93,146.9,13.08370737]
[1768409959025,2.48779743,146.94,146.9,19.89100256]
[1768409959541,2.48779743,146.94,146.9,0.68370737]
[1768409959542,2.48779743,146.93,146.9,0.68370737]
[1768409959715,9.29330105,146.94,146.9,0.68370737]
[1768409960238,2.48779743,146.93,146.9,0.68370737]
[1768409962243,9.71460921,146.94,146.9,0.68370737]
[1768409963443,2.90897943,146.94,146.9,7.49099314]
[1768409963821,9.71452218,146.94,146.9,7.49099314]
[1768409964438,9.71450684,146.94,146.9,0.68370737]
[1768409965147,7.22670941,146.94,146.9,0.68370737]
[1768409965447,9.71450684,146.94,146.9,0.68370737]
[1768409965846,2.90897943,146.94,146.9,7.49104572]
[1768409966148,9.29344974,146.94,146.9,0.68370737]
[1768409967154,7.22639171,146.95,146.91,0.70390702]
[1768409967541,9.71418914,146.95,146.91,0.70390702]
[1768409967943,2.48779743,146.94,146.91,0.70390702]
[1768409968342,9.29329985,146.94,146.91,0.70390702]
[1768409968948,0.421182,146.92,146.89,12.42]
[1768409969133,6.80550242,146.94,146.9,0.70390702]
[1768409969326,9.29329985,146.94,146.9,0.70390702]
[1768409969531,2.48779743,146.96,146.91,0.70390702]
[1768409970161,2.48779743,146.96,146.92,0.70390702]
[1768409970533,57.82885854,146.99,146.92,0.70390702]
[1768409970856,2.48779743,146.96,146.93,0.70390702]
[1768409971236,7.16458918,147.0,146.95,0.70390702]
[1768409971433,7.16458918,147.0,146.96,0.70390702]
[1768409971633,9.65238661,147.0,146.96,0.70390702]
[1768409972056,2.84957945,146.99,146.95,13.12390702]
[1768409972338,9.65278996,146.99,146.95,13.12390702]
[1768409972541,7.16470177,147.0,146.95,19.92891544]
[1768409972743,2.48779743,146.97,146.95,13.12390702]
[1768409972944,2.48779743,146.97,146.95,12.42]
[1768409973145,2.48779743,146.98,146.95,12.42]
[1768409973660,2.84957945,146.99,146.95,12.42]
[1768409974456,9.65318159,146.99,146.95,13.12390702]
[1768409974657,17.00680272,147.0,146.96,0.70390702]
[1768409974658,6.80282357,147.0,146.96,0.70390702]
[1768409974952,2.48779743,146.99,146.95,19.92874624]
[1768409975133,2.84957945,146.99,146.95,19.92874624]
[1768409976354,0.36178202,146.99,146.95,19.92874624]
[1768409976859,9.65243349,147.0,146.96,0.70390702]
[1768409977953,9.65202612,147.01,146.97,0.70390702]
[1768409978259,2.48779743,147.0,146.97,0.70390702]
[1768409979563,7.16422869,147.01,146.97,0.70390702]
[1768409979742,2.48779743,147.0,146.97,0.70390702]
[1768409980962,2.84957945,147.0,146.96,0.70390702]
[1768409981159,2.48779743,146.99,146.96,0.70390702]
[1768409981958,7.16494018,147.0,146.96,0.70390702]
[1768409982161,9.65273761,147.0,146.96,0.70390702]
[1768409982866,2.48779743,146.99,146.96,0.70390702]
[1768409983195,9.65273761,147.0,146.96,0.70390702]
[1768409983342,9.29095559,147.0,146.97,0.70390702]
[1768409983664,2.48779743,146.99,146.96,0.70390702]
[1768409985066,0.68534657,147.03,146.96,6.80444363]
[1768409985255,15.0,147.1,146.96,6.80444363]
[1768409985256,9.97365046,147.05,146.98,2.48779743]
[1768409985452,9.97365046,147.05,146.99,12.4]
[1768409985654,9.97362581,147.05,147.0,7.50653328]
[1768409986362,0.68534657,147.03,146.99,13.10390702]
[1768409986551,0.65534658,147.03,146.99,13.10390702]
[1768409986749,2.48779743,147.04,147.0,0.70390702]
[1768409987148,23.80150187,147.05,147.0,0.70390702]
[1768409987359,6.80048181,147.05,147.0,7.50648333]
[1768409987670,9.28827924,147.05,147.0,7.50648333]
[1768409987971,2.48779743,147.04,146.99,19.90689634]
[1768409988271,2.48779743,147.04,147.0,6.80272038]
[1768409988464,3.173144,147.04,147.0,6.80272038]
[1768409988665,3.173144,147.04,146.99,19.90693976]
[1768409989162,0.68534657,147.03,146.99,19.90693976]
[1768409990355,0.68534657,147.03,147.0,6.80270352]
[1768409990555,0.68534657,147.03,147.0,7.49945634]
[1768409991065,0.68534657,147.03,147.0,0.69675282]
[1768409992147,3.173144,147.03,147.0,0.69675282]
[1768409992352,0.66196611,147.03,146.98,0.69675282]
[1768409992554,3.14976354,147.03,146.99,0.69675282]
[1768409993153,2.48779743,147.02,146.98,19.90025952]
[1768409993869,3.14976354,147.02,146.98,19.90025952]
[1768409994171,0.66196611,147.01,146.98,13.09675282]
[1768409994360,3.14976354,147.01,146.98,13.09675282]
[1768409994676,0.66196611,147.01,146.98,19.90034178]
[1768409996168,0.66196611,147.02,146.98,19.90034178]
[1768409996756,3.14976354,147.02,146.98,19.90034178]
[1768409997056,3.14976354,147.01,146.97,19.90081141]
[1768409997356,0.66196611,147.01,146.98,6.80360496]
[1768409997550,0.66196611,147.01,146.98,7.50035778]
[1768409997746,3.14976354,147.02,146.98,7.50035778]
[1768409999758,0.66196611,147.03,146.99,0.69675282]
[1768409999959,3.14976354,147.03,146.99,0.69675282]
[1768410000160,0.66196611,147.03,146.99,0.69675282]
[1768410000467,0.66196611,147.02,146.98,19.20360496]
[1768410000866,0.66196611,147.02,146.98,13.09675282]
[1768410001179,3.14859302,147.02,146.98,19.90023637]
[1768410001354,0.66196611,147.02,146.99,0.69675282]
[1768410001556,0.66196611,147.01,146.98,12.4]
[1768410001781,0.66196611,147.0,146.98,12.4]
[1768410002204,4.54713183,147.01,146.98,12.4]
[1768410002366,4.54713183,147.01,146.97,7.50072132]
[1768410002563,6.80200131,147.02,146.95,33.29713479]
[1768410002564,0.66196611,146.98,146.95,12.4]
[1768410002793,0.66196611,146.98,146.93,0.69675282]
[1768410003087,0.66196611,146.99,146.94,0.69675282]
[1768410003295,4.54713183,146.99,146.95,7.5017529]
[1768410003471,0.66196611,146.99,146.95,7.5017529]
[1768410003673,4.54713183,147.01,146.96,0.69675282]
[1768410003886,0.66196611,147.01,146.96,0.69675282]
[1768410004266,4.54713183,147.01,146.96,0.69675282]
[1768410004461,0.66196611,146.98,146.95,19.20500008]
[1768410004690,0.66196611,146.98,146.95,6.80500008]
[1768410004869,4.54713183,146.99,146.95,0.69675282]
[1768410005076,4.54713183,146.96,146.92,7.50299723]
[1768410005399,4.54713183,146.95,146.92,12.4]
[1768410005602,0.66196611,146.94,146.91,6.80676003]
[1768410006107,0.66196611,146.96,146.92,7.50305832]
[1768410006283,7.46579147,146.98,146.93,0.69675282]
[1768410006592,4.54713183,146.97,146.93,0.69675282]
[1768410006792,11.35046239,146.99,146.94,0.69675282]
[1768410006966,3.88516572,146.98,146.94,0.69675282]
[1768410007170,0.66196611,146.99,146.94,0.69675282]
[1768410007364,3.88516572,146.97,146.94,0.69675282]
[1768410007679,4.54713183,146.98,146.94,0.69675282]
[1768410008091,0.66196611,147.0,146.95,0.69675282]
[1768410008285,0.66196611,146.98,146.94,6.80544171]
[1768410008476,0.66196611,146.98,146.94,7.50219453]
[1768410008669,4.54713183,146.98,146.94,7.50219453]
[1768410009392,3.88516572,146.97,146.94,7.50219453]
[1768410009568,3.85516573,146.97,146.94,7.50219453]
[1768410009765,4.54713183,146.98,146.94,7.50219453]
[1768410010187,0.66196611,146.98,146.94,7.50219453]
[1768410010368,6.80237959,147.01,146.95,0.69675282]
[1768410010573,17.66687347,147.02,146.97,0.69675282]
[1768410010574,0.66196611,147.02,146.97,0.69675282]
[1768410010877,7.46387511,147.02,146.97,0.69675282]
[1768410011103,4.54713183,147.01,146.97,0.69675282]
[1768410011308,0.63196612,147.01,146.97,0.69675282]
[1768410011589,5.34408856,147.06,146.96,12.4]
[1768410011590,3.88516572,147.02,146.98,7.50039957]
[1768410011800,3.88516572,146.99,146.96,19.90121727]
[1768410011985,3.88516572,147.0,146.96,19.90121727]
[1768410012494,3.88516572,146.99,146.96,19.20446445]
[1768410012901,23.7998096,147.06,146.96,19.20446445]
[1768410013207,3.88516572,146.99,146.96,19.20446445]
[1768410013575,4.54713183,146.99,146.96,19.20446445]
[1768410013783,3.88516572,146.98,146.96,12.4]
[1768410013975,3.88516572,146.97,146.96,12.4]
[1768410014171,4.54713183,146.98,146.95,6.80492199]
[1768410014375,0.66196611,146.99,146.94,0.69675282]
[1768410014598,4.54713183,146.99,146.95,7.5013704]
[1768410014797,0.66196611,146.99,146.95,7.5013704]
[1768410014992,4.54713183,146.98,146.95,6.80461758]
[1768410015186,3.88516572,146.98,146.95,7.5013704]
[1768410016495,4.54713183,146.99,146.95,7.5013704]
[1768410016690,0.66196611,146.99,146.95,7.5013704]
[1768410016897,3.88516572,146.98,146.95,7.5013704]
[1768410017094,0.66196611,146.99,146.95,7.5013704]
[1768410017276,3.88516572,146.98,146.95,7.5013704]
[1768410017480,3.88516572,146.98,146.95,6.80461758]
[1768410017702,4.54713183,146.98,146.95,6.80461758]
[1768410019493,3.88516572,146.97,146.95,6.80461758]
[1768410019701,3.88516572,146.96,146.94,7.50210163]
[1768410020714,3.88516572,146.96,146.94,6.80534881]
[1768410021075,4.59846311,146.96,146.94,6.80534881]
[1768410021277,4.59846311,146.95,146.93,12.4]
[1768410021600,3.88516572,146.95,146.93,19.20594413]
[1768410022095,4.59846311,146.96,146.93,19.20594413]
[1768410022303,3.88516572,146.95,146.93,12.4]
[1768410023197,4.59846311,146.95,146.92,6.80626927]
[1768410023401,4.59846311,146.95,146.91,7.50706782]
[1768410023579,0.71329739,146.95,146.92,6.80608588]
[1768410023779,0.6832974,146.95,146.92,6.80608588]
[1768410024195,4.53846313,146.95,146.92,6.80608588]
[1768410024999,3.88516572,146.94,146.92,6.80608588]
[1768410025299,4.53846313,146.95,146.92,6.80608588]
[1768410026002,3.88516572,146.94,146.91,6.80672061]
[1768410026200,4.59846311,146.94,146.91,6.80672061]
[1768410026384,4.59846311,146.95,146.91,7.50693165]
[1768410026583,0.71329739,146.95,146.91,7.50693165]
[1768410026782,3.88516572,146.94,146.91,7.50693165]
[1768410026987,3.88516572,146.94,146.91,19.90693165]
[1768410027299,0.71329739,146.95,146.91,19.90693165]
[1768410027508,3.88516572,146.94,146.91,19.90693165]
[1768410028109,4.59846311,146.92,146.87,0.70021104]
[1768410028407,3.88516572,146.91,146.88,0.70021104]
[1768410028707,0.71329739,146.93,146.9,6.8071728]
[1768410028900,3.88516572,146.92,146.9,6.8071728]
[1768410029284,4.59846311,146.93,146.9,6.8071728]
[1768410029483,3.88516572,146.92,146.9,7.50738384]
[1768410030505,0.71329739,146.94,146.9,7.50738384]
[1768410030693,3.88516572,146.92,146.9,7.50738384]
[1768410031203,3.88516572,146.93,146.91,0.70021104]
[1768410031601,3.88516572,146.93,146.9,7.50738384]
[1768410031909,0.70841741,146.94,146.9,7.50738384]
[1768410032084,4.59358313,146.94,146.9,7.50738384]
[1768410032587,6.80505037,146.95,146.9,7.50738384]
[1768410032588,0.71329739,146.95,146.91,0.70021104]
[1768410032805,0.71329739,146.96,146.91,0.70021104]
[1768410033099,17.00851745,146.99,146.91,0.70021104]
[1768410033100,0.71329739,146.99,146.92,0.70021104]
[1768410033299,6.80281951,147.0,146.93,0.70021104]
[1768410033508,3.88516572,146.99,146.94,0.70021104]
[1768410034490,0.22529955,147.0,146.94,0.70021104]
[1768410034690,3.88516572,146.99,146.94,0.70021104]
[1768410034885,4.59358313,146.99,146.95,6.80503572]
[1768410035090,3.88516572,146.98,146.95,7.50524676]
[1768410035810,3.88516572,146.97,146.93,0.70021104]
[1768410036605,3.88516572,146.97,146.93,7.50607128]
[1768410036787,4.11046527,146.98,146.94,0.70021104]
[1768410037306,3.88516572,146.98,146.94,0.70021104]
[1768410037897,3.88516572,146.98,146.9,34.0367597]
[1768410037898,4.58880027,146.95,146.9,7.50725736]
[1768410038090,27.69472168,147.0,146.91,7.50680341]
[1768410038291,27.69472168,147.0,146.92,6.80638028]
[1768410038292,3.88516572,146.95,146.92,6.80638028]
[1768410038988,3.88516572,146.94,146.91,0.70021104]
[1768410039398,0.70841741,146.95,146.91,0.70021104]
[1768410039609,3.88516572,146.93,146.9,7.50723197]
[1768410040315,3.88516572,146.93,146.87,61.5]
[1768410040529,6.80596789,146.93,146.86,0.70021104]
[1768410041016,3.88516572,146.9,146.86,0.70021104]
[1768410041613,3.88516572,146.9,146.87,7.50862245]
[1768410041812,0.23013073,146.94,146.89,0.70021104]
[1768410042018,29.43294187,146.95,146.87,7.50862245]
[1768410042019,4.59846311,146.92,146.87,7.50862245]
[1768410042795,29.43294187,146.95,146.87,0.70021104]
[1768410042796,4.59846311,146.91,146.87,0.70021104]
[1768410043309,0.71329739,146.93,146.87,0.70021104]
[1768410043493,4.59846311,146.92,146.87,0.70021104]
[1768410043694,3.88516572,146.91,146.88,6.80827886]
[1768410044994,3.88516572,146.91,146.87,7.50881218]
[1768410047807,0.3556851,146.9,146.85,0.70021104]
[1768410048126,0.3556851,146.9,146.85,7.50953685]